[Event "Early-Titled-Tuesday-Blitz-January-16-2024"]
[Site "Chess.com"]
[Date "2024.01.16"]
[Round "3"]
[White "dcremisi"]
[Black "TrahtarBelarus"]
[Result "1/2-1/2"]
[WhiteElo "2682"]
[BlackElo "2890"]
[TimeControl "180+1"]
[EndTime "8:30:16 PST"]
[Termination "Game drawn - insufficient material"]

1. Nf3 {[%clk 0:03:00.9]} 1... Nf6 {[%clk 0:02:58.8]} 2. c4 {[%clk 0:03:01.1]}
2... g6 {[%clk 0:02:55.8]} 3. Nc3 {[%clk 0:03:01]} 3... Bg7 {[%clk 0:02:56.1]}
4. d4 {[%clk 0:03:01.3]} 4... d5 {[%clk 0:02:55.9]} 5. cxd5 {[%clk 0:03:00.1]}
5... Nxd5 {[%clk 0:02:56.8]} 6. g3 {[%clk 0:02:59.3]} 6... Nxc3 {[%clk
0:02:56.2]} 7. bxc3 {[%clk 0:02:59.4]} 7... O-O {[%clk 0:02:57.1]} 8. Bg2 {[%clk
0:02:59.8]} 8... c5 {[%clk 0:02:57.6]} 9. O-O {[%clk 0:03:00]} 9... Nc6 {[%clk
0:02:54.2]} 10. Bb2 {[%clk 0:02:59.4]} 10... e5 {[%clk 0:02:27.7]} 11. dxe5
{[%clk 0:02:55.1]} 11... Nxe5 {[%clk 0:02:24.5]} 12. Nxe5 {[%clk 0:02:54]} 12...
Bxe5 {[%clk 0:02:25.4]} 13. Qxd8 {[%clk 0:02:54]} 13... Rxd8 {[%clk 0:02:26.3]}
14. Rfd1 {[%clk 0:02:53.1]} 14... Bg4 {[%clk 0:02:15.4]} 15. f3 {[%clk
0:02:40.8]} 15... Be6 {[%clk 0:02:13.5]} 16. f4 {[%clk 0:02:41]} 16... Bg7
{[%clk 0:01:53.3]} 17. a4 {[%clk 0:02:23.7]} 17... a5 {[%clk 0:01:39.8]} 18. Kf2
{[%clk 0:02:08.2]} 18... Bb3 {[%clk 0:01:30.8]} 19. Rxd8+ {[%clk 0:02:07.9]}
19... Rxd8 {[%clk 0:01:31.7]} 20. Ke1 {[%clk 0:02:08.1]} 20... b6 {[%clk
0:01:25.2]} 21. Bc6 {[%clk 0:02:07.8]} 21... f5 {[%clk 0:01:15.6]} 22. Bb5
{[%clk 0:02:07.5]} 22... Kf7 {[%clk 0:01:10.2]} 23. h4 {[%clk 0:01:55.2]} 23...
c4 {[%clk 0:01:08.9]} 24. Rc1 {[%clk 0:01:48.3]} 24... Bf8 {[%clk 0:01:08.7]}
25. Ra1 {[%clk 0:01:47.1]} 25... Bc5 {[%clk 0:01:08.6]} 26. Ba3 {[%clk
0:01:29.7]} 26... Be3 {[%clk 0:00:59]} 27. Kf1 {[%clk 0:01:27.5]} 27... Rd2
{[%clk 0:00:41.7]} 28. Kg2 {[%clk 0:01:27.2]} 28... Rc2 {[%clk 0:00:42]} 29. Rd1
{[%clk 0:01:21.6]} 29... Rxe2+ {[%clk 0:00:41]} 30. Kf3 {[%clk 0:01:17.4]} 30...
Rd2 {[%clk 0:00:26.6]} 31. Re1 {[%clk 0:00:57.2]} 31... Bc5 {[%clk 0:00:21.5]}
32. Bxc5 {[%clk 0:00:55.3]} 32... bxc5 {[%clk 0:00:22.4]} 33. Re5 {[%clk
0:00:33.6]} 33... Rd3+ {[%clk 0:00:22.5]} 34. Re3 {[%clk 0:00:33.5]} 34... Rd5
{[%clk 0:00:20.5]} 35. Re5 {[%clk 0:00:28.8]} 35... Rxe5 {[%clk 0:00:08.4]} 36.
fxe5 {[%clk 0:00:29.7]} 36... Ke6 {[%clk 0:00:09]} 37. Kf4 {[%clk 0:00:27.9]}
37... h6 {[%clk 0:00:09.6]} 38. Bc6 {[%clk 0:00:21.1]} 38... Bc2 {[%clk
0:00:04.9]} 39. Bb5 {[%clk 0:00:19.2]} 39... Bd3 {[%clk 0:00:04.3]} 40. Ba6
{[%clk 0:00:18.4]} 40... g5+ {[%clk 0:00:04.2]} 41. hxg5 {[%clk 0:00:18.4]}
41... hxg5+ {[%clk 0:00:05.1]} 42. Kxg5 {[%clk 0:00:19.1]} 42... Kxe5 {[%clk
0:00:06]} 43. Bb5 {[%clk 0:00:19.1]} 43... Bc2 {[%clk 0:00:06.1]} 44. Bd7 {[%clk
0:00:18.7]} 44... Bd3 {[%clk 0:00:05.7]} 45. Bc8 {[%clk 0:00:17.9]} 45... Be4
{[%clk 0:00:05.2]} 46. Bd7 {[%clk 0:00:17.7]} 46... Bc2 {[%clk 0:00:05.2]} 47.
Bb5 {[%clk 0:00:17.1]} 47... Ke4 {[%clk 0:00:04.8]} 48. Bxc4 {[%clk 0:00:10.1]}
48... Bxa4 {[%clk 0:00:04.9]} 49. Be6 {[%clk 0:00:10.4]} 49... Kd3 {[%clk
0:00:04.2]} 50. Kxf5 {[%clk 0:00:06.8]} 50... Kxc3 {[%clk 0:00:04.4]} 51. g4
{[%clk 0:00:03.7]} 51... Kd4 {[%clk 0:00:04.8]} 52. Kf4 {[%clk 0:00:03.3]} 52...
Bc2 {[%clk 0:00:04.9]} 53. Bf5 {[%clk 0:00:03.2]} 53... Bxf5 {[%clk 0:00:03.1]}
54. gxf5 {[%clk 0:00:04.1]} 54... Kd5 {[%clk 0:00:02.3]} 55. Kg5 {[%clk
0:00:04.1]} 55... a4 {[%clk 0:00:02.8]} 56. f6 {[%clk 0:00:03.7]} 56... Ke6
{[%clk 0:00:02.2]} 57. Kg6 {[%clk 0:00:03.7]} 57... a3 {[%clk 0:00:02.7]} 58. f7
{[%clk 0:00:04.2]} 58... a2 {[%clk 0:00:02.3]} 59. f8=Q {[%clk 0:00:04.7]} 59...
a1=Q {[%clk 0:00:02.9]} 60. Qxc5 {[%clk 0:00:04]} 60... Qf6+ {[%clk 0:00:02.7]}
61. Kh7 {[%clk 0:00:03.3]} 61... Qf5+ {[%clk 0:00:03.3]} 62. Qxf5+ {[%clk
0:00:03.3]} 62... Kxf5 {[%clk 0:00:04.2]} 1/2-1/2

[Event "Early-Titled-Tuesday-Blitz-January-16-2024"]
[Site "Chess.com"]
[Date "2024.01.16"]
[Round "3"]
[White "SpongeBob_03"]
[Black "valik3504"]
[Result "0-1"]
[WhiteElo "2202"]
[BlackElo "2550"]
[TimeControl "180+1"]
[EndTime "8:30:20 PST"]
[Termination "valik3504 won by checkmate"]

1. e4 {[%clk 0:03:00.9]} 1... c5 {[%clk 0:02:57.3]} 2. Nf3 {[%clk 0:03:00.2]}
2... e6 {[%clk 0:02:57.4]} 3. c4 {[%clk 0:02:55.8]} 3... Nc6 {[%clk 0:02:40.4]}
4. Nc3 {[%clk 0:02:53.2]} 4... Nf6 {[%clk 0:02:38.1]} 5. d4 {[%clk 0:02:40.1]}
5... cxd4 {[%clk 0:02:37.6]} 6. Nxd4 {[%clk 0:02:38.8]} 6... Bb4 {[%clk
0:02:36.9]} 7. Nxc6 {[%clk 0:02:23.5]} 7... bxc6 {[%clk 0:02:36.1]} 8. Bd3
{[%clk 0:02:20.6]} 8... e5 {[%clk 0:02:36.1]} 9. Bd2 {[%clk 0:02:16]} 9... O-O
{[%clk 0:02:31.8]} 10. a3 {[%clk 0:02:13.6]} 10... Bc5 {[%clk 0:02:29.5]} 11.
Na4 {[%clk 0:02:06]} 11... Bd4 {[%clk 0:02:29.6]} 12. Bc3 {[%clk 0:02:05.5]}
12... d6 {[%clk 0:02:25.6]} 13. O-O {[%clk 0:01:36.8]} 13... Be6 {[%clk
0:01:47.5]} 14. Qe2 {[%clk 0:01:17.5]} 14... Nd7 {[%clk 0:01:40.7]} 15. Bxd4
{[%clk 0:00:57.2]} 15... exd4 {[%clk 0:01:40]} 16. f4 {[%clk 0:00:57.3]} 16...
f6 {[%clk 0:01:20.2]} 17. b4 {[%clk 0:00:31.7]} 17... a5 {[%clk 0:01:00.6]} 18.
c5 {[%clk 0:00:22.4]} 18... axb4 {[%clk 0:00:47.2]} 19. axb4 {[%clk 0:00:22.5]}
19... dxc5 {[%clk 0:00:45.1]} 20. bxc5 {[%clk 0:00:23.4]} 20... Ra5 {[%clk
0:00:19.6]} 21. Bc4 {[%clk 0:00:22.5]} 21... Qe7 {[%clk 0:00:19.3]} 22. f5
{[%clk 0:00:19.9]} 22... Bf7 {[%clk 0:00:19.5]} 23. Bxf7+ {[%clk 0:00:19.4]}
23... Qxf7 {[%clk 0:00:19.3]} 24. Qd3 {[%clk 0:00:18.4]} 24... Nxc5 {[%clk
0:00:13.2]} 25. Nxc5 {[%clk 0:00:18]} 25... Rxc5 {[%clk 0:00:14.1]} 26. Qxd4
{[%clk 0:00:18.4]} 26... Re5 {[%clk 0:00:14.5]} 27. Rac1 {[%clk 0:00:17.9]}
27... Rc8 {[%clk 0:00:10.1]} 28. Rc5 {[%clk 0:00:17.8]} 28... Qe7 {[%clk
0:00:06.4]} 29. Qc4+ {[%clk 0:00:16]} 29... Qf7 {[%clk 0:00:03.1]} 30. Rc1
{[%clk 0:00:11.7]} 30... Qxc4 {[%clk 0:00:01.8]} 31. R1xc4 {[%clk 0:00:12.6]}
31... Rxc5 {[%clk 0:00:01.3]} 32. Rxc5 {[%clk 0:00:12.7]} 32... Kf7 {[%clk
0:00:02.2]} 33. Kf2 {[%clk 0:00:12.8]} 33... Ke7 {[%clk 0:00:02.8]} 34. Kf3
{[%clk 0:00:13.7]} 34... Kd6 {[%clk 0:00:03.6]} 35. Rc1 {[%clk 0:00:13.8]} 35...
c5 {[%clk 0:00:04.1]} 36. Kf4 {[%clk 0:00:13.7]} 36... c4 {[%clk 0:00:04.6]} 37.
g4 {[%clk 0:00:13.7]} 37... Kc5 {[%clk 0:00:04.2]} 38. g5 {[%clk 0:00:13.6]}
38... Re8 {[%clk 0:00:03.1]} 39. gxf6 {[%clk 0:00:13.2]} 39... gxf6 {[%clk
0:00:03.5]} 40. Ke3 {[%clk 0:00:14]} 40... Kb4 {[%clk 0:00:02.7]} 41. Kd4 {[%clk
0:00:14.1]} 41... Rd8+ {[%clk 0:00:02.7]} 42. Ke3 {[%clk 0:00:14.8]} 42... c3
{[%clk 0:00:03]} 43. Rb1+ {[%clk 0:00:13.2]} 43... Kc4 {[%clk 0:00:03.1]} 44.
Rb7 {[%clk 0:00:13.7]} 44... c2 {[%clk 0:00:02.8]} 45. Rc7+ {[%clk 0:00:14.1]}
45... Kb3 {[%clk 0:00:03.4]} 46. Rb7+ {[%clk 0:00:14.5]} 46... Ka2 {[%clk
0:00:03.4]} 47. Ra7+ {[%clk 0:00:14.9]} 47... Kb2 {[%clk 0:00:04.1]} 48. Rb7+
{[%clk 0:00:15.3]} 48... Kc1 {[%clk 0:00:04.7]} 49. Rc7 {[%clk 0:00:15]} 49...
Kd1 {[%clk 0:00:05.2]} 50. Rxc2 {[%clk 0:00:12.4]} 50... Kxc2 {[%clk 0:00:06.1]}
51. e5 {[%clk 0:00:13.3]} 51... Rd5 {[%clk 0:00:01.8]} 52. exf6 {[%clk
0:00:11.6]} 52... Rxf5 {[%clk 0:00:02.2]} 53. f7 {[%clk 0:00:12.1]} 53... Rxf7
{[%clk 0:00:02.6]} 54. Ke4 {[%clk 0:00:12.8]} 54... Ra7 {[%clk 0:00:03.3]} 55.
Ke5 {[%clk 0:00:12.9]} 55... Kc3 {[%clk 0:00:04]} 56. Kf6 {[%clk 0:00:13.3]}
56... Kc4 {[%clk 0:00:04.7]} 57. Kg5 {[%clk 0:00:14]} 57... Kd5 {[%clk
0:00:05.4]} 58. Kh6 {[%clk 0:00:14.9]} 58... Ke5 {[%clk 0:00:05]} 59. h4 {[%clk
0:00:15.8]} 59... Kf4 {[%clk 0:00:03.6]} 60. h5 {[%clk 0:00:16.7]} 60... Ra5
{[%clk 0:00:03.6]} 61. Kxh7 {[%clk 0:00:16.7]} 61... Rxh5+ {[%clk 0:00:04.5]}
62. Kg6 {[%clk 0:00:16.8]} 62... Re5 {[%clk 0:00:05.4]} 63. Kh6 {[%clk
0:00:17.1]} 63... Rg5 {[%clk 0:00:05.5]} 64. Kh7 {[%clk 0:00:16.9]} 64... Kf5
{[%clk 0:00:06.2]} 65. Kh6 {[%clk 0:00:16.8]} 65... Kf6 {[%clk 0:00:06.9]} 66.
Kh7 {[%clk 0:00:17.1]} 66... Kf7 {[%clk 0:00:07.6]} 67. Kh8 {[%clk 0:00:17.5]}
67... Rh5# {[%clk 0:00:07.9]} 0-1

[Event "Early-Titled-Tuesday-Blitz-January-16-2024"]
[Site "Chess.com"]
[Date "2024.01.16"]
[Round "3"]
[White "HamedWafa4"]
[Black "YouJustFoundYourGodfather"]
[Result "1-0"]
[WhiteElo "2859"]
[BlackElo "2588"]
[TimeControl "180+1"]
[EndTime "8:30:21 PST"]
[Termination "HamedWafa4 won by resignation"]

1. e4 {[%clk 0:03:00.9]} 1... d5 {[%clk 0:02:53.3]} 2. exd5 {[%clk 0:02:54.7]}
2... Qxd5 {[%clk 0:02:54.2]} 3. Nf3 {[%clk 0:02:54]} 3... Nf6 {[%clk 0:02:53.5]}
4. d4 {[%clk 0:02:53.7]} 4... g6 {[%clk 0:02:53.4]} 5. Nc3 {[%clk 0:02:50.7]}
5... Qd6 {[%clk 0:02:53.9]} 6. Ne5 {[%clk 0:02:46]} 6... Nc6 {[%clk 0:02:41.9]}
7. Bb5 {[%clk 0:02:33.3]} 7... Nd7 {[%clk 0:02:23.7]} 8. Bf4 {[%clk 0:02:02.4]}
8... Nxd4 {[%clk 0:00:59.8]} 9. O-O {[%clk 0:01:47.5]} 9... c6 {[%clk
0:00:47.5]} 10. Ne4 {[%clk 0:00:56.7]} 10... Qd5 {[%clk 0:00:40.6]} 11. Nc3
{[%clk 0:00:48.3]} 11... Qd6 {[%clk 0:00:22.2]} 12. Nd3 {[%clk 0:00:42.4]} 12...
Qe6 {[%clk 0:00:16.2]} 13. Re1 {[%clk 0:00:40.3]} 13... Qf5 {[%clk 0:00:16.3]}
14. Bc4 {[%clk 0:00:36.9]} 14... Bg7 {[%clk 0:00:16.5]} 15. Bg3 {[%clk 0:00:31]}
15... O-O {[%clk 0:00:16.1]} 16. Rxe7 {[%clk 0:00:28.6]} 16... Nb6 {[%clk
0:00:16.8]} 17. Bb3 {[%clk 0:00:26.6]} 17... c5 {[%clk 0:00:13.3]} 18. a3 {[%clk
0:00:13.7]} 18... c4 {[%clk 0:00:10.4]} 19. Ba2 {[%clk 0:00:10]} 19... cxd3
{[%clk 0:00:10.5]} 20. cxd3 {[%clk 0:00:10.9]} 20... Be6 {[%clk 0:00:10.4]} 21.
Rxb7 {[%clk 0:00:10.4]} 21... Bxa2 {[%clk 0:00:09.8]} 22. Nxa2 {[%clk
0:00:10.9]} 22... Rfe8 {[%clk 0:00:08.1]} 23. Nc3 {[%clk 0:00:10.8]} 23... Rac8
{[%clk 0:00:07.7]} 24. Rxa7 {[%clk 0:00:10.9]} 24... Nd5 {[%clk 0:00:07.4]} 25.
Ne4 {[%clk 0:00:10.3]} 25... Nf4 {[%clk 0:00:04.7]} 26. Nd6 {[%clk 0:00:09.4]}
26... Nfe2+ {[%clk 0:00:04.9]} 27. Kh1 {[%clk 0:00:10.1]} 27... Nxg3+ {[%clk
0:00:03.6]} 28. fxg3 {[%clk 0:00:10.7]} 28... Qc5 {[%clk 0:00:04.3]} 29. Nxc8
{[%clk 0:00:10.3]} 29... Rxc8 {[%clk 0:00:03.9]} 30. Ra4 {[%clk 0:00:11.1]}
30... Qb5 {[%clk 0:00:01.8]} 31. b4 {[%clk 0:00:07.5]} 31... Nc2 {[%clk
0:00:01.5]} 32. Ra5 {[%clk 0:00:07.8]} 32... Qb6 {[%clk 0:00:01.4]} 33. Rc1
{[%clk 0:00:08.4]} 33... Qe3 {[%clk 0:00:01.8]} 34. Rc5 {[%clk 0:00:06.7]} 34...
Rxc5 {[%clk 0:00:01.7]} 35. bxc5 {[%clk 0:00:07.6]} 35... Nxa3 {[%clk
0:00:02.3]} 36. c6 {[%clk 0:00:08.2]} 36... Nb5 {[%clk 0:00:01.5]} 37. c7 {[%clk
0:00:08.2]} 37... Nxc7 {[%clk 0:00:02.3]} 38. Rxc7 {[%clk 0:00:09.1]} 38... Be5
{[%clk 0:00:03]} 39. Rc2 {[%clk 0:00:09.3]} 39... Kg7 {[%clk 0:00:03.9]} 40. Re2
{[%clk 0:00:09.7]} 40... Qd4 {[%clk 0:00:04.6]} 41. Re4 {[%clk 0:00:10.3]} 41...
Qd5 {[%clk 0:00:04.8]} 42. Re3 {[%clk 0:00:10.4]} 42... Bf6 {[%clk 0:00:05.4]}
43. Rf3 {[%clk 0:00:11]} 43... h5 {[%clk 0:00:05.9]} 44. Qe2 {[%clk 0:00:11.3]}
44... Qd6 {[%clk 0:00:06.4]} 45. h3 {[%clk 0:00:11.6]} 45... h4 {[%clk
0:00:05.8]} 46. gxh4 {[%clk 0:00:11.9]} 46... Bxh4 {[%clk 0:00:06.4]} 47. Qe4
{[%clk 0:00:11.8]} 47... Bf6 {[%clk 0:00:04.7]} 48. Qe2 {[%clk 0:00:11.2]} 48...
Qc6 {[%clk 0:00:03.8]} 49. g3 {[%clk 0:00:10.7]} 49... Bd4 {[%clk 0:00:02.2]}
50. Kg2 {[%clk 0:00:10.9]} 50... Qd6 {[%clk 0:00:02.6]} 51. Qe4 {[%clk
0:00:10.9]} 51... Qd7 {[%clk 0:00:03]} 52. Qf4 {[%clk 0:00:10.8]} 52... Kg8
{[%clk 0:00:01.5]} 53. h4 {[%clk 0:00:11.2]} 53... Kg7 {[%clk 0:00:02.1]} 54.
Rf1 {[%clk 0:00:10.5]} 54... Kg8 {[%clk 0:00:02.6]} 55. Re1 {[%clk 0:00:11]}
55... Kg7 {[%clk 0:00:03.2]} 56. Re4 {[%clk 0:00:11.5]} 56... Bf6 {[%clk
0:00:03.7]} 57. d4 {[%clk 0:00:12.1]} 57... Qd5 {[%clk 0:00:03.5]} 58. Kh3
{[%clk 0:00:10.7]} 58... Qd7+ {[%clk 0:00:04.1]} 59. Qg4 {[%clk 0:00:10.8]}
59... Qb5 {[%clk 0:00:04.8]} 60. Rf4 {[%clk 0:00:08.9]} 60... Qb1 {[%clk
0:00:05.2]} 61. Qf3 {[%clk 0:00:08.7]} 61... Qb6 {[%clk 0:00:02.1]} 62. d5
{[%clk 0:00:09.2]} 62... Qd6 {[%clk 0:00:02.5]} 63. h5 {[%clk 0:00:08.3]} 63...
Qd7+ {[%clk 0:00:02.7]} 64. Qg4 {[%clk 0:00:08.9]} 64... Be5 {[%clk 0:00:03.6]}
65. Qxd7 {[%clk 0:00:08.9]} 1-0

[Event "Early-Titled-Tuesday-Blitz-January-16-2024"]
[Site "Chess.com"]
[Date "2024.01.16"]
[Round "3"]
[White "DanilNajdin"]
[Black "BardArtem"]
[Result "0-1"]
[WhiteElo "2500"]
[BlackElo "2792"]
[TimeControl "180+1"]
[EndTime "8:30:22 PST"]
[Termination "BardArtem won on time"]

1. d4 {[%clk 0:03:00.5]} 1... d5 {[%clk 0:02:54.7]} 2. c4 {[%clk 0:03:00]} 2...
e6 {[%clk 0:02:54.3]} 3. Nc3 {[%clk 0:03:00.1]} 3... c5 {[%clk 0:02:53.5]} 4.
cxd5 {[%clk 0:02:59.4]} 4... cxd4 {[%clk 0:02:45.4]} 5. Qxd4 {[%clk 0:03:00.3]}
5... Nc6 {[%clk 0:02:45.2]} 6. Qd1 {[%clk 0:02:58.4]} 6... exd5 {[%clk
0:02:45.6]} 7. Qxd5 {[%clk 0:02:58.4]} 7... Qc7 {[%clk 0:02:37.1]} 8. Nf3 {[%clk
0:02:57.9]} 8... Be6 {[%clk 0:02:36.8]} 9. Qb5 {[%clk 0:02:54.9]} 9... O-O-O
{[%clk 0:02:26.8]} 10. Be3 {[%clk 0:02:44]} 10... Nf6 {[%clk 0:02:18.1]} 11. g3
{[%clk 0:02:43.9]} 11... Nd5 {[%clk 0:02:11.8]} 12. Bg2 {[%clk 0:02:29.6]} 12...
Nxe3 {[%clk 0:01:51.9]} 13. fxe3 {[%clk 0:02:30.5]} 13... a6 {[%clk 0:01:52.1]}
14. Qa4 {[%clk 0:02:28.3]} 14... Qb6 {[%clk 0:01:51.8]} 15. O-O {[%clk
0:02:06.9]} 15... Qxe3+ {[%clk 0:01:48.5]} 16. Kh1 {[%clk 0:02:06.7]} 16... Kb8
{[%clk 0:01:37.9]} 17. Rac1 {[%clk 0:02:05.4]} 17... Qb6 {[%clk 0:01:26.9]} 18.
Ng5 {[%clk 0:01:58.8]} 18... Rd4 {[%clk 0:00:56.2]} 19. Qc2 {[%clk 0:01:58.2]}
19... Nb4 {[%clk 0:00:51]} 20. Qb1 {[%clk 0:01:58.3]} 20... Be7 {[%clk
0:00:39.8]} 21. Nxf7 {[%clk 0:01:46.1]} 21... Rf8 {[%clk 0:00:35]} 22. Ne5
{[%clk 0:01:43.6]} 22... Rxf1+ {[%clk 0:00:35.9]} 23. Rxf1 {[%clk 0:01:43.1]}
23... Bf6 {[%clk 0:00:36.3]} 24. Nf3 {[%clk 0:01:23.1]} 24... Rd8 {[%clk
0:00:36.3]} 25. Qe4 {[%clk 0:01:11.2]} 25... Nxa2 {[%clk 0:00:30]} 26. Na4
{[%clk 0:00:59.9]} 26... Qb4 {[%clk 0:00:27.2]} 27. Qxe6 {[%clk 0:00:56.9]}
27... Qxa4 {[%clk 0:00:23.6]} 28. Qb6 {[%clk 0:00:45.2]} 28... Qb5 {[%clk
0:00:17.2]} 29. Qe6 {[%clk 0:00:36]} 29... Nb4 {[%clk 0:00:15.1]} 30. e4 {[%clk
0:00:31.1]} 30... Nd3 {[%clk 0:00:13.7]} 31. Qf7 {[%clk 0:00:16.2]} 31... Qc5
{[%clk 0:00:10.2]} 32. h3 {[%clk 0:00:15.9]} 32... Nf2+ {[%clk 0:00:09.6]} 33.
Kh2 {[%clk 0:00:16.1]} 33... Nxe4 {[%clk 0:00:09.8]} 34. Nh4 {[%clk 0:00:10.2]}
34... Rd2 {[%clk 0:00:04.9]} 35. Qe8+ {[%clk 0:00:07.5]} 35... Ka7 {[%clk
0:00:05.5]} 36. Qxe4 {[%clk 0:00:07.4]} 36... Rxb2 {[%clk 0:00:06]} 37. Nf5
{[%clk 0:00:05.6]} 37... Rb4 {[%clk 0:00:04.9]} 38. Qd5 {[%clk 0:00:05]} 38...
Qxd5 {[%clk 0:00:05]} 39. Bxd5 {[%clk 0:00:05.9]} 39... Rb2+ {[%clk 0:00:05.9]}
40. Kg1 {[%clk 0:00:04.7]} 40... g6 {[%clk 0:00:06]} 41. Nh4 {[%clk 0:00:02.5]}
41... Bd4+ {[%clk 0:00:06.1]} 42. Kh1 {[%clk 0:00:02.9]} 42... b5 {[%clk
0:00:06.8]} 43. Ng2 {[%clk 0:00:02.4]} 43... a5 {[%clk 0:00:06.6]} 44. Rf7+
{[%clk 0:00:03]} 44... Kb6 {[%clk 0:00:06.9]} 45. h4 {[%clk 0:00:03.4]} 45... a4
{[%clk 0:00:06.3]} 46. Rxh7 {[%clk 0:00:03]} 46... a3 {[%clk 0:00:06.8]} 47.
Rb7+ {[%clk 0:00:03]} 47... Kc5 {[%clk 0:00:07.1]} 48. Bf7 {[%clk 0:00:03.4]}
48... a2 {[%clk 0:00:07.1]} 49. Bxa2 {[%clk 0:00:03.2]} 49... Rxa2 {[%clk
0:00:08]} 50. Nf4 {[%clk 0:00:03.2]} 50... b4 {[%clk 0:00:03.7]} 51. Nxg6 {[%clk
0:00:02.9]} 51... Kc4 {[%clk 0:00:04.3]} 52. h5 {[%clk 0:00:02.5]} 52... b3
{[%clk 0:00:04.2]} 53. h6 {[%clk 0:00:02.8]} 53... Ra6 {[%clk 0:00:01.5]} 54.
Rc7+ {[%clk 0:00:01.2]} 54... Kd3 {[%clk 0:00:01.1]} 55. Rg7 {[%clk 0:00:01.6]}
55... Ra1+ {[%clk 0:00:01.8]} 56. Kg2 {[%clk 0:00:01.6]} 56... Bxg7 {[%clk
0:00:02.7]} 57. hxg7 {[%clk 0:00:02.2]} 57... Ra8 {[%clk 0:00:03.3]} 58. Nf8
{[%clk 0:00:02.7]} 58... b2 {[%clk 0:00:03.8]} 0-1

[Event "Early-Titled-Tuesday-Blitz-January-16-2024"]
[Site "Chess.com"]
[Date "2024.01.16"]
[Round "3"]
[White "anasta10"]
[Black "Niilo1"]
[Result "1-0"]
[WhiteElo "2503"]
[BlackElo "2273"]
[TimeControl "180+1"]
[EndTime "8:30:22 PST"]
[Termination "anasta10 won by checkmate"]

1. c4 {[%clk 0:03:00.9]} 1... c5 {[%clk 0:02:55]} 2. g3 {[%clk 0:03:00.8]} 2...
Nf6 {[%clk 0:02:54.9]} 3. Bg2 {[%clk 0:03:01.3]} 3... d5 {[%clk 0:02:55.1]} 4.
cxd5 {[%clk 0:03:00.6]} 4... Nxd5 {[%clk 0:02:56]} 5. Nf3 {[%clk 0:03:01.2]}
5... Nc6 {[%clk 0:02:56.1]} 6. O-O {[%clk 0:03:01.9]} 6... e5 {[%clk 0:02:54.6]}
7. Nc3 {[%clk 0:03:01.9]} 7... Nc7 {[%clk 0:02:54.6]} 8. d3 {[%clk 0:03:02]}
8... Be7 {[%clk 0:02:54.3]} 9. Be3 {[%clk 0:03:02.6]} 9... O-O {[%clk
0:02:53.4]} 10. Rc1 {[%clk 0:03:03.3]} 10... Bd7 {[%clk 0:02:51.3]} 11. Ne4
{[%clk 0:03:03.3]} 11... b6 {[%clk 0:02:49.4]} 12. a3 {[%clk 0:02:58.2]} 12...
f5 {[%clk 0:02:47.6]} 13. Nc3 {[%clk 0:02:55.7]} 13... Rc8 {[%clk 0:02:43.9]}
14. Ne1 {[%clk 0:02:49.4]} 14... f4 {[%clk 0:02:36.8]} 15. Bd2 {[%clk
0:02:47.6]} 15... Kh8 {[%clk 0:02:35]} 16. Nc2 {[%clk 0:02:45.4]} 16... Ne6
{[%clk 0:02:30.6]} 17. Nd5 {[%clk 0:02:43.3]} 17... Ned4 {[%clk 0:02:23.3]} 18.
Nxd4 {[%clk 0:02:37.3]} 18... Nxd4 {[%clk 0:02:21.8]} 19. e3 {[%clk 0:02:18.3]}
19... f3 {[%clk 0:02:19.4]} 20. exd4 {[%clk 0:02:01.1]} 20... fxg2 {[%clk
0:02:19.2]} 21. Re1 {[%clk 0:01:56.4]} 21... cxd4 {[%clk 0:02:09.3]} 22. Rxc8
{[%clk 0:01:39.6]} 22... Bxc8 {[%clk 0:02:07.2]} 23. Nxe7 {[%clk 0:01:36.4]}
23... Qxe7 {[%clk 0:02:06.4]} 24. Bb4 {[%clk 0:01:35.7]} 24... Qf6 {[%clk
0:01:43.2]} 25. Bxf8 {[%clk 0:01:35.3]} 25... Qxf8 {[%clk 0:01:44.1]} 26. Rxe5
{[%clk 0:01:34.5]} 26... h6 {[%clk 0:01:29.5]} 27. Qe1 {[%clk 0:01:29.5]} 27...
Bd7 {[%clk 0:01:29.1]} 28. Re7 {[%clk 0:00:53.6]} 28... Bb5 {[%clk 0:01:12.4]}
29. Qe5 {[%clk 0:00:47.8]} 29... a6 {[%clk 0:01:07.5]} 30. Rb7 {[%clk
0:00:30.7]} 30... Kh7 {[%clk 0:01:04.9]} 31. Qe4+ {[%clk 0:00:22.7]} 31... Kh8
{[%clk 0:01:03]} 32. Qf4 {[%clk 0:00:22.4]} 32... Qxf4 {[%clk 0:00:58.4]} 33.
gxf4 {[%clk 0:00:23.3]} 33... Bxd3 {[%clk 0:00:59]} 34. Rd7 {[%clk 0:00:17.5]}
34... Bf1 {[%clk 0:00:42.2]} 35. Rxd4 {[%clk 0:00:18.4]} 35... a5 {[%clk
0:00:35.3]} 36. Rd6 {[%clk 0:00:16.7]} 36... b5 {[%clk 0:00:35.4]} 37. f5 {[%clk
0:00:16]} 37... Kg8 {[%clk 0:00:29.7]} 38. f6 {[%clk 0:00:16]} 38... gxf6 {[%clk
0:00:29.9]} 39. Rxf6 {[%clk 0:00:16.9]} 39... Kg7 {[%clk 0:00:30.6]} 40. Rb6
{[%clk 0:00:17.2]} 40... a4 {[%clk 0:00:29.6]} 41. h3 {[%clk 0:00:16.1]} 41...
Kh7 {[%clk 0:00:28.1]} 42. f4 {[%clk 0:00:16.4]} 42... Kg7 {[%clk 0:00:27.6]}
43. h4 {[%clk 0:00:14.9]} 43... Kh7 {[%clk 0:00:22.6]} 44. h5 {[%clk 0:00:15.4]}
44... Kg7 {[%clk 0:00:22.1]} 45. Kf2 {[%clk 0:00:15.8]} 45... Kh7 {[%clk
0:00:21]} 46. Rb7+ {[%clk 0:00:15.6]} 46... Kg8 {[%clk 0:00:20]} 47. Ra7 {[%clk
0:00:16.2]} 47... Kh8 {[%clk 0:00:18.3]} 48. f5 {[%clk 0:00:16.4]} 48... Kg8
{[%clk 0:00:18]} 49. f6 {[%clk 0:00:16.9]} 49... Kh8 {[%clk 0:00:14.1]} 50. Rg7
{[%clk 0:00:17.1]} 50... b4 {[%clk 0:00:09.6]} 51. Rg3 {[%clk 0:00:14]} 51...
bxa3 {[%clk 0:00:08.6]} 52. bxa3 {[%clk 0:00:14.9]} 52... Bc4 {[%clk 0:00:02.1]}
53. Kxg2 {[%clk 0:00:15.1]} 53... Bf7 {[%clk 0:00:02.1]} 54. Kf2 {[%clk
0:00:15.5]} 54... Bxh5 {[%clk 0:00:02.2]} 55. Ke3 {[%clk 0:00:15.4]} 55... Be8
{[%clk 0:00:02.1]} 56. Kf4 {[%clk 0:00:16]} 56... h5 {[%clk 0:00:02.2]} 57. Kg5
{[%clk 0:00:16.5]} 57... h4 {[%clk 0:00:01.8]} 58. Kxh4 {[%clk 0:00:16.7]} 58...
Bf7 {[%clk 0:00:02.1]} 59. Kg5 {[%clk 0:00:17.1]} 59... Bd5 {[%clk 0:00:02.5]}
60. Kh6 {[%clk 0:00:14.7]} 60... Bg8 {[%clk 0:00:03.4]} 61. Rc3 {[%clk
0:00:13.1]} 61... Bf7 {[%clk 0:00:02.9]} 62. Rc7 {[%clk 0:00:13.1]} 62... Bg8
{[%clk 0:00:03.8]} 63. f7 {[%clk 0:00:11.4]} 63... Bh7 {[%clk 0:00:01.4]} 64.
f8=Q+ {[%clk 0:00:10.1]} 64... Bg8 {[%clk 0:00:02.3]} 65. Qg7# {[%clk 0:00:11]}
1-0